fUST/lending_fUST_20251115
["ID","MTS","AMOUNT","RATE_DAILY","PERIOD"]
[394032953,1763202639076,-332.6798599,0.00032324,2]
[394032954,1763202639086,-271.55253996,0.00032359,71]
[394032955,1763202639096,-291.69857279,0.00032528,9]
[394032956,1763202639106,-235.026,0.00032528,32]
[394032957,1763202639115,-271.55253996,0.00032543,79]
[394032958,1763202639125,-460.0,0.00032588,2]
[394032959,1763202639135,-271.55253996,0.00032728,86]
[394032960,1763202639144,-161.970873,0.00032895,20]
[394032961,1763202639153,-271.55253996,0.00032913,94]
[394032962,1763202639164,-271.55253996,0.00033097,102]
[394032963,1763202639173,-560.0,0.00033136,2]
[394032964,1763202639184,-313.197118,0.00033165,2]
[394032965,1763202639193,-150.0,0.00033181,2]
[394032966,1763202639202,-164.05,0.000332,7]
[394032967,1763202639212,-4248.4,0.000332,14]
[394032968,1763202639222,-587.0,0.00033206,2]
[394032969,1763202639231,-271.55253996,0.00033282,110]
[394032970,1763202639241,-655.421876,0.00033504,2]
[394032971,1763202639250,-778.55319527,0.00033683,2]
[394032972,1763202639260,-175.45,0.000337,30]
[394032973,1763202639269,-258.0,0.0003389,120]
[394032974,1763202639279,-291.69857279,0.00034358,17]
[394032975,1763202639288,-490.0,0.0003449,2]
[394032976,1763202639297,-490.0,0.00034536,2]
[394032977,1763202639306,-490.0,0.0003483,2]
[394032978,1763202639316,-492.0,0.00034963,2]
[394032979,1763202639325,-492.0,0.00035227,2]
[394032980,1763202639334,-492.0,0.0003524,2]
[394032981,1763202639343,-177.0,0.00035452,78]
[394032982,1763202639352,-492.0,0.00035756,120]
[394032983,1763202639361,-490.0,0.00035782,2]
[394032984,1763202639370,-490.0,0.00035793,2]
[394032985,1763202639379,-490.0,0.00035904,7]
[394032986,1763202639388,-1474.699221,0.00036164,2]
[394032987,1763202639397,-764.13768777,0.00036164,2]
[394032988,1763202639406,-490.0,0.00036184,2]
[394032989,1763202639415,-291.69857279,0.00036189,25]
[394032990,1763202639424,-492.0,0.00036215,120]
[394032991,1763202639433,-490.0,0.00036347,2]
[394032992,1763202639442,-504.37921029,0.00036373,5]
[394032993,1763202639451,-512.25097809,0.00036373,5]
[394032994,1763202639461,-2156.15926815,0.00036389,2]
[394032995,1763202639470,-189.4245289,0.00036461,2]
[394032996,1763202639479,-500.0,0.00036473,5]
[394032997,1763202639488,-508.02079401,0.00036473,5]
[394032998,1763202639497,-506.76459582,0.00036473,5]
[394032999,1763202639506,-500.0,0.00036473,5]
[394033000,1763202639515,-500.0,0.00036473,5]
[394033001,1763202639524,-500.0,0.00036473,5]
[394033002,1763202639533,-500.0,0.00036473,5]
[394033003,1763202639542,-504.33920177,0.00036473,5]
[394033004,1763202639551,-500.0,0.00036473,5]
[394033005,1763202639560,-504.87790427,0.00036473,5]
[394033006,1763202639570,-501.03513554,0.00036473,5]
[394033007,1763202639578,-218.90520436,0.00036473,5]
[394033008,1763202639588,-626.7836846,0.00036473,5]
[394033009,1763202639597,-503.66722272,0.00036473,5]
[394033010,1763202639606,-500.0,0.00036473,5]
[394033011,1763202639615,-500.0,0.00036473,5]
[394033012,1763202639624,-500.0,0.00036473,5]
[394033013,1763202639634,-500.0,0.00036473,5]
[394033014,1763202639644,-500.0,0.00036473,5]
[394033015,1763202639654,-633.16474288,0.00036473,5]
[394033016,1763202639663,-500.0,0.00036473,5]
[394033017,1763202639672,-584.18534924,0.00036473,5]
[394033018,1763202639682,-506.74115742,0.00036473,5]
[394033019,1763202639691,-500.0,0.00036473,5]
[394033020,1763202639700,-501.88441996,0.00036473,5]
[394033021,1763202639710,-500.0,0.00036473,5]
[394033022,1763202639719,-305.85602091,0.00036473,5]
[394033023,1763202639728,-500.0,0.00036473,5]
[394033024,1763202639737,-500.0,0.00036473,5]
[394033025,1763202639746,-150.0,0.00036473,5]
[394033026,1763202639755,-500.0,0.00036473,5]
[394033027,1763202639764,-503.84547126,0.00036473,5]
[394033028,1763202639773,-500.0,0.00036473,5]
[394033029,1763202639783,-502.85165295,0.00036473,5]
[394033030,1763202639792,-501.41442112,0.00036473,5]
[394033031,1763202639801,-504.04530422,0.00036473,5]
[394033032,1763202639810,-500.94920212,0.00036473,5]
[394033033,1763202639820,-500.0,0.00036489,20]
[394033034,1763202639829,-500.0,0.00036489,2]
[394033035,1763202639840,-2111.85,0.00036489,2]
[394033036,1763202639849,-4248.4,0.000365,14]
[394033037,1763202639858,-492.0,0.00036522,7]
[394033038,1763202639867,-490.0,0.0003654,120]
[394033039,1763202639877,-492.0,0.00036613,7]
[394033040,1763202639886,-490.0,0.00036726,7]
[394033041,1763202639895,-175.45,0.000368,30]
[394033042,1763202639905,-502.65793107,0.00037021,5]
[394033043,1763202639915,-511.60236064,0.00037021,5]
[394033044,1763202639924,-1000.0,0.00037021,5]
[394033045,1763202639934,-1008.17750607,0.00037021,5]
[394033046,1763202639945,-510.52016342,0.00037021,5]
[394033047,1763202639955,-509.39699169,0.00037021,5]
[394033048,1763202639964,-502.12068515,0.00037021,5]
[394033049,1763202639973,-1000.0,0.00037021,5]
[394033050,1763202639982,-503.42514393,0.00037021,5]
[394033051,1763202639992,-506.74287562,0.00037021,5]
[394033052,1763202640001,-1000.0,0.00037021,5]
[394033053,1763202640010,-1000.0,0.00037021,5]
[394033054,1763202640020,-1000.0,0.00037021,5]
[394033055,1763202640029,-508.5886318,0.00037021,5]
[394033056,1763202640038,-508.3204322,0.00037021,5]
[394033057,1763202640047,-252.30444153,0.00037021,5]
[394033058,1763202640056,-981.69996397,0.00037021,5]
[394033059,1763202640066,-1015.8743917,0.00037021,5]
[394033060,1763202640075,-490.0,0.00037021,2]
[394033061,1763202640085,-490.0,0.00037081,2]
[394033062,1763202640095,-472.33115088,0.00037273,5]
[394033063,1763202640104,-500.0,0.00037275,20]
[394033064,1763202640113,-500.0,0.00037275,2]
[394033065,1763202640122,-2111.85,0.00037275,2]
[394033066,1763202640132,-490.0,0.00037277,2]
[394033067,1763202640141,-490.0,0.00037351,7]
[394033068,1763202640151,-500.0,0.00037471,20]
[394033069,1763202640160,-500.0,0.00037471,20]
[394033070,1763202640169,-1426.93356727,0.00037568,5]
[394033071,1763202640179,-1500.0,0.00037568,5]
[394033072,1763202640188,-1234.62343932,0.00037568,5]
[394033073,1763202640197,-500.0,0.00037568,5]
[394033074,1763202640207,-1020.19729629,0.00037568,5]
[394033075,1763202640216,-490.0,0.00037675,2]
[394033076,1763202640225,-2000.0,0.00037679,7]
[394033077,1763202640237,-490.0,0.00037833,7]
[394033078,1763202640246,-490.0,0.00037939,7]
[394033079,1763202640255,-291.69857279,0.0003802,32]
[394033080,1763202640264,-492.0,0.00038023,2]
[394033082,1763202640274,-2000.0,0.00038116,5]
[394033083,1763202640283,-500.0,0.00038372,2]
[394033085,1763202640292,-2111.85,0.00038372,2]
[394033087,1763202640301,-239.85901054,0.00038373,5]
[394033088,1763202640310,-505.84408909,0.00038373,5]
[394033090,1763202640320,-505.10469812,0.00038373,5]
[394033092,1763202640330,-310.08589097,0.00038373,5]
[394033094,1763202640348,-193.62302518,0.00038373,5]
[394033096,1763202640358,-501.37192263,0.00038373,5]
[394033098,1763202640369,-500.0,0.00038373,5]
[394033099,1763202640379,-502.16020807,0.00038373,5]
[394033101,1763202640388,-7764.91167462,0.0003839,2]
[394033103,1763202640400,-281.04,0.0003839,2]
[394033111,1763202640746,-532.5,0.0003839,2]
[394033118,1763202647009,-784.08101098,0.0003839,2]
[394033119,1763202647018,-1969.21198927,0.00038394,2]
[394033120,1763202647601,-142.63801073,0.00038394,2]
[394033121,1763202647610,-257.58299268,0.00038664,5]
[394033122,1763202670569,251.57633706,0.00026282,2]
[394033123,1763202678049,251.63848886,0.00026282,2]
[394033125,1763202774446,251.63855102,0.00026282,2]
[394033126,1763202791834,251.63855108,0.00026282,2]
[394033127,1763202902251,1224.3,5e-05,2]
[394033128,1763202902534,1224.3,5.1e-05,2]
[394033129,1763202902814,1224.3,5.3e-05,2]
[394033130,1763202903097,1224.3,5.4e-05,2]
[394033131,1763202903139,4735.26644267,0.00023,2]
[394033132,1763202903444,1224.3,5.6e-05,2]
[394033133,1763202903881,1224.3,5.7e-05,2]
[394033134,1763202904165,1224.3,5.9e-05,2]
[394033135,1763202904454,673.55627628,6e-05,2]
[394033136,1763202904481,550.74372372,6e-05,2]
[394033137,1763202904725,1224.3,6.1e-05,2]
[394033138,1763202905006,1224.3,6.3e-05,2]
[394033139,1763202905328,1224.3,6.4e-05,2]
[394033140,1763202905625,1224.3,6.6e-05,2]
[394033141,1763202905896,1224.3,6.7e-05,2]
[394033142,1763202906176,1224.3,6.9e-05,2]
[394033143,1763202906676,1224.3,7e-05,2]
[394033144,1763202906952,1224.3,7.1e-05,2]
[394033145,1763202907253,1224.3,7.3e-05,2]
[394033146,1763202907526,1224.3,7.4e-05,2]
[394033147,1763202907802,1224.3,7.6e-05,2]
[394033148,1763202908118,1224.3,7.7e-05,2]
[394033149,1763202908438,1224.3,7.9e-05,2]
[394033150,1763202908719,1224.3,8e-05,2]
[394033151,1763202909027,1224.3,8.1e-05,2]
[394033152,1763202909376,1224.3,8.3e-05,2]
[394033153,1763202909700,1224.3,8.4e-05,2]
[394033154,1763202910003,1224.3,8.6e-05,2]
[394033155,1763202910289,1224.3,8.7e-05,2]
[394033156,1763202910584,1224.3,8.9e-05,2]
[394033157,1763202911004,1224.3,9e-05,2]
[394033158,1763202911303,1224.3,9.1e-05,2]
[394033159,1763202911583,1224.3,9.3e-05,2]
[394033160,1763202911889,205.61,9.4e-05,2]
[394033161,1763202911912,1018.69,9.4e-05,2]
[394033162,1763202912175,1224.3,9.6e-05,2]
[394033163,1763202913139,1224.3,9.7e-05,2]
[394033164,1763202913490,1224.3,9.9e-05,2]
[394033165,1763202913713,1224.3,0.0001,2]
[394033166,1763202914041,1224.3,0.000101,2]
[394033167,1763202914496,1224.3,0.000103,2]
[394033168,1763202914870,1224.3,0.000104,2]
[394033169,1763202915347,411.22,0.000106,2]
[394033170,1763202915369,813.08,0.000106,2]
[394033171,1763202915649,1224.3,0.000107,2]
[394033172,1763202915969,1224.3,0.000109,2]
[394033173,1763202916335,1224.3,0.00011,2]
[394033174,1763202916645,1224.3,0.000111,2]
[394033175,1763202916948,1224.3,0.000113,2]
[394033176,1763202917222,1224.3,0.000114,2]
[394033177,1763202917960,1224.3,0.000116,2]
[394033178,1763202918275,616.83,0.000117,2]
[394033179,1763202918307,607.47,0.000117,2]
[394033180,1763202918579,1224.3,0.000119,2]
[394033181,1763202918865,1224.3,0.00012,2]
[394033182,1763202961662,156.18,5e-05,2]
[394033183,1763202961995,156.18,6.2e-05,2]
[394033184,1763202962268,156.18,7.3e-05,2]
[394033185,1763202962564,156.18,8.5e-05,2]
[394033186,1763202962885,156.18,9.7e-05,2]
[394033187,1763202963190,156.18,0.000108,2]
[394033188,1763202963499,156.18,0.00012,2]
[394033190,1763203021878,156.13,5e-05,2]
[394033191,1763203022126,5694.55,0.00020425,2]
[394033192,1763203022149,4305.45,0.00020425,2]
[394033193,1763203032730,5694.56,0.00020425,2]
[394033194,1763203032751,4305.44,0.00020425,2]
[394033195,1763203050300,10000.0,0.0002,2]
[394033199,1763203388874,0.01,0.0002,2]
[394033200,1763203388898,10000.01,0.0002,2]
[394033201,1763203388920,10000.01,0.0002,2]
[394033202,1763203388941,10000.01,0.0002,2]
[394033203,1763203388962,10000.01,0.0002,2]
[394033204,1763203388986,6084.75627628,0.0002,2]
[394033205,1763203389010,25000.0,0.0002,2]
[394033206,1763203389036,25000.0,0.0002,2]
[394033207,1763203389227,3915.36372372,0.0002,2]
[394033208,1763203432700,18197.0,0.0002,2]
[394033209,1763203447954,453.86465756,0.000199,4]
[394033212,1763203617383,2433.77161872,0.00019,10]
[394033213,1763203617415,7566.22838128,0.00019,10]
[394033214,1763203622139,5000.0,0.0002,2]
[394033218,1763203643870,5000.0,0.0002,2]
[394033219,1763203665710,5000.0,0.0002,2]
[394033220,1763203666634,-150.0,0.00020199,2]
[394033221,1763203666656,-298.0,0.00020514,2]
[394033222,1763203666678,-177.0,0.00022199,2]
[394033223,1763203666700,-5000.0,0.0002318,2]
[394033224,1763203666724,-300.0,0.00023413,2]
[394033225,1763203666747,-4837.1106492,0.00023414,2]
[394033226,1763203666769,-678.83527967,0.00024131,2]
[394033227,1763203666791,-204.0,0.00024199,2]
[394033228,1763203666812,-420.0,0.00025405,2]
[394033229,1763203666834,-999.0,0.00026084,2]
[394033230,1763203666856,-231.0,0.00026199,2]
[394033231,1763203666879,-160.0,0.00026529,2]
[394033232,1763203666902,-260.0,0.00027077,2]
[394033233,1763203666928,-587.0,0.00027567,2]
[394033234,1763203666951,-360.0,0.00027624,2]
[394033235,1763203666973,-1767.19796402,0.0002816,2]
[394033236,1763203666996,-258.0,0.00028199,2]
[394033237,1763203667021,-251.51848566,0.00028397,20]
[394033238,1763203667046,-2365.72271143,0.00028399,2]
[394033239,1763203667070,-500.0,0.00028472,2]
[394033240,1763203667100,-500.0,0.00028472,2]
[394033241,1763203667123,-500.0,0.00028472,2]
[394033242,1763203667146,-500.0,0.00028472,2]
[394033243,1763203667170,-500.0,0.00028472,2]
[394033244,1763203667193,-293.03013704,0.00028472,2]
[394033245,1763203667221,-500.0,0.00028472,2]
[394033246,1763203667247,-500.0,0.00028472,2]
[394033247,1763203667279,-500.0,0.00028472,2]
[394033248,1763203667307,-500.0,0.00028472,2]
[394033249,1763203667333,-500.0,0.00028472,2]
[394033250,1763203667358,-500.0,0.00028472,2]
[394033251,1763203667384,-500.0,0.00028472,2]
[394033252,1763203667411,-589.33539233,0.00028472,2]
[394033253,1763203667439,-500.0,0.00028472,2]
[394033254,1763203667464,-238.23661777,0.00028472,2]
[394033255,1763203667490,-500.0,0.00028472,2]
[394033256,1763203667518,-500.0,0.00028472,2]
[394033257,1763203667544,-500.0,0.00028472,2]
[394033258,1763203667571,-500.0,0.00028472,2]
[394033259,1763203667597,-500.0,0.00028472,2]
[394033260,1763203667623,-617.63316907,0.00028472,2]
[394033261,1763203667650,-500.0,0.00028472,2]
[394033262,1763203667675,-555.54208564,0.00028473,5]
[394033263,1763203667698,-500.0,0.00028473,5]
[394033264,1763203667723,-509.26830409,0.00028473,5]
[394033265,1763203667747,-505.38349467,0.00028473,5]
[394033266,1763203667771,-500.0,0.00028473,5]
[394033267,1763203667798,-194.72792766,0.00028482,2]
[394033268,1763203667823,-500.0,0.00028496,20]
[394033269,1763203667849,-1759.88,0.00028497,2]
[394033270,1763203667875,-500.0,0.00028497,20]
[394033271,1763203667903,-1759.88,0.00028498,2]
[394033272,1763203667928,-500.0,0.00028498,20]
[394033273,1763203667952,-500.0,0.00028499,20]
[394033274,1763203667977,-500.0,0.00028499,20]
[394033275,1763203668004,-500.0,0.00028499,20]
[394033276,1763203668032,-500.0,0.00028499,20]
[394033277,1763203668059,-500.0,0.00028499,20]
[394033278,1763203668084,-500.0,0.00028499,20]
[394033279,1763203668108,-550.03511886,0.00028499,20]
[394033280,1763203668133,-500.0,0.00028499,20]
[394033281,1763203668158,-509.66796178,0.00028499,20]
[394033282,1763203668183,-500.0,0.000285,5]
[394033283,1763203668206,-500.0,0.000288,5]
[394033284,1763203668231,-500.0,0.000288,5]
[394033285,1763203668259,-500.0,0.000288,5]
[394033286,1763203668285,-505.96645197,0.00029021,5]
[394033287,1763203668310,-651.31406613,0.00029021,5]
[394033288,1763203668339,-201.93286099,0.0002903,2]
[394033289,1763203668363,-500.0,0.00029047,20]
[394033290,1763203668386,-708.37028292,0.00029048,5]
[394033291,1763203668410,-1000.0,0.00029348,5]
[394033292,1763203668434,-160.0,0.00029425,14]
[394033293,1763203668460,-209.40437684,0.00029578,2]
[394033294,1763203668484,-1560.43011427,0.00029896,5]
[394033295,1763203668513,-547.0,0.00029913,2]
[394033296,1763203668539,-2365.72271143,0.00029957,2]
[394033331,1763203831834,-1015.60627387,0.00026182,2]
[394033333,1763203831843,-440.34310426,0.00026282,2]
[394033335,1763203831852,-177.66,0.00028386,10]
[394033337,1763203831861,-310.17,0.00028386,10]
[394033339,1763203831870,-116674.82995606,0.00028396,2]
[394033414,1763203837734,-258.47,0.00028386,10]
[394033416,1763203837743,-773.13611943,0.00028396,2]
[394034199,1763203867327,2433.77161872,0.0002,2]
[394034200,1763203867351,7566.22838128,0.0002,2]
[394034201,1763203877451,10000.0,0.0002,2]
[394034202,1763203884462,7433.77161872,0.0002,2]
[394034203,1763203884486,2566.22838128,0.0002,2]
[394034204,1763203891550,10000.0,0.0002,2]
[394034205,1763203897855,10000.0,0.0002,2]
[394034206,1763203907127,2433.77161872,0.00019,10]
[394034207,1763203907153,7566.22838128,0.00019,10]
[394034208,1763203914147,10000.0,0.00019,10]
[394034209,1763203922309,7433.77161872,0.00019,10]
[394034210,1763203922339,2566.22838128,0.00019,10]
[394034211,1763203928983,10000.0,0.00019,10]
[394034213,1763203936498,10000.0,0.00019,10]
[394034216,1763203942724,2433.77161872,0.00019,10]
[394034217,1763203942750,4868.38809121,0.00019,10]
[394034218,1763203942776,2697.84029007,0.00019,10]
[394034219,1763203950688,10000.0,0.00019993,2]
[394034220,1763203957207,0.01,0.00019993,2]
[394034221,1763203957228,9999.99,0.00019993,2]
[394034222,1763203963021,0.02,0.00019993,2]
[394034223,1763203963043,5021.3,0.00019993,2]
[394034224,1763203974866,169.2518906,0.00012944,2]
[394034225,1763203982264,403.81,5e-05,2]
[394034226,1763203982582,403.81,5.1e-05,2]
[394034227,1763203982889,403.81,5.3e-05,2]
[394034228,1763203983168,403.81,5.4e-05,2]
[394034229,1763203984109,403.81,5.6e-05,2]
[394034230,1763203984464,403.81,5.7e-05,2]
[394034231,1763203984785,403.81,5.9e-05,2]
[394034232,1763203985059,403.81,6e-05,2]
[394034233,1763203985346,403.81,6.1e-05,2]
[394034234,1763203985625,403.81,6.3e-05,2]
[394034235,1763203985906,403.81,6.4e-05,2]
[394034236,1763203986213,367.5481094,6.6e-05,2]
[394034237,1763203986235,36.2618906,6.6e-05,2]
[394034238,1763203986555,403.81,6.7e-05,2]
[394034239,1763203986788,403.81,6.9e-05,2]
[394034240,1763203987101,403.81,7e-05,2]
[394034241,1763203987416,403.81,7.1e-05,2]
[394034242,1763203987852,403.81,7.3e-05,2]
[394034243,1763203988196,403.81,7.4e-05,2]
[394034244,1763203988482,403.81,7.6e-05,2]
[394034245,1763203988824,403.81,7.7e-05,2]
[394034246,1763203989935,403.81,7.9e-05,2]
[394034247,1763203990318,403.81,8e-05,2]
[394034248,1763203990653,403.81,8.1e-05,2]
[394034249,1763203990944,403.81,8.3e-05,2]
[394034250,1763203991236,403.81,8.4e-05,2]
[394034251,1763203991697,403.81,8.6e-05,2]
[394034252,1763203992002,403.81,8.7e-05,2]
[394034253,1763203992274,403.81,8.9e-05,2]
[394034254,1763203992562,403.81,9e-05,2]
[394034255,1763203992833,403.81,9.1e-05,2]
[394034256,1763203993109,403.81,9.3e-05,2]
[394034257,1763203993529,403.81,9.4e-05,2]
[394034258,1763203993849,403.81,9.6e-05,2]
[394034259,1763203994125,403.81,9.7e-05,2]
[394034260,1763203994536,403.81,9.9e-05,2]
[394034261,1763203995002,403.81,0.0001,2]
[394034262,1763203995139,272.3081094,0.000101,2]
[394034263,1763203995160,131.5018906,0.000101,2]
[394034264,1763203995466,403.81,0.000103,2]
[394034265,1763203995774,403.81,0.000104,2]
[394034266,1763203996039,403.81,0.000106,2]
[394034267,1763203996315,403.81,0.000107,2]
[394034268,1763203996626,403.81,0.000109,2]
[394034269,1763203996873,403.81,0.00011,2]
[394034270,1763203997200,403.81,0.000111,2]
[394034271,1763203997556,403.81,0.000113,2]
[394034272,1763203997888,403.81,0.000114,2]
[394034273,1763203998162,403.81,0.000116,2]
[394034274,1763203998443,403.81,0.000117,2]
[394034275,1763203998715,403.81,0.000119,2]
[394034276,1763203999029,403.81,0.00012,2]
[394034277,1763204041747,349.52,5e-05,2]
[394034278,1763204042031,349.52,5.1e-05,2]
[394034279,1763204042398,349.52,5.3e-05,2]
[394034280,1763204042725,349.52,5.4e-05,2]
[394034281,1763204043266,349.52,5.6e-05,2]
[394034282,1763204043576,349.52,5.7e-05,2]
[394034283,1763204043962,349.52,5.9e-05,2]
[394034284,1763204044308,349.52,6e-05,2]
[394034285,1763204044598,349.52,6.1e-05,2]
[394034286,1763204044887,349.52,6.3e-05,2]
[394034287,1763204045259,349.52,6.4e-05,2]
[394034288,1763204045575,349.52,6.6e-05,2]
[394034289,1763204045914,349.52,6.7e-05,2]
[394034290,1763204046277,75.2181094,6.9e-05,2]
[394034291,1763204046299,274.3018906,6.9e-05,2]
[394034292,1763204046553,349.52,7e-05,2]
[394034293,1763204046926,349.52,7.1e-05,2]
[394034294,1763204047296,349.52,7.3e-05,2]
[394034295,1763204047627,349.52,7.4e-05,2]
[394034296,1763204047963,349.52,7.6e-05,2]
[394034297,1763204048267,349.52,7.7e-05,2]
[394034298,1763204048556,349.52,7.9e-05,2]
[394034299,1763204048932,349.52,8e-05,2]
[394034300,1763204049275,349.52,8.1e-05,2]
[394034301,1763204049564,349.52,8.3e-05,2]
[394034302,1763204049858,349.52,8.4e-05,2]
[394034303,1763204050202,349.52,8.6e-05,2]
[394034304,1763204050524,349.52,8.7e-05,2]
[394034305,1763204050808,349.52,8.9e-05,2]
[394034306,1763204051105,349.52,9e-05,2]
[394034307,1763204051562,349.52,9.1e-05,2]
[394034308,1763204051889,349.52,9.3e-05,2]
[394034309,1763204052156,349.52,9.4e-05,2]
[394034310,1763204052456,349.52,9.6e-05,2]
[394034311,1763204052741,349.52,9.7e-05,2]
[394034312,1763204053019,349.52,9.9e-05,2]
[394034313,1763204053391,349.52,0.0001,2]
[394034314,1763204054270,349.52,0.000101,2]
[394034315,1763204054457,349.52,0.000103,2]
[394034316,1763204055307,349.52,0.000104,2]
[394034317,1763204055679,349.52,0.000106,2]
[394034318,1763204055985,349.52,0.000107,2]
[394034319,1763204056263,288.6681094,0.000109,2]
[394034320,1763204056285,60.8518906,0.000109,2]
[394034321,1763204056544,349.52,0.00011,2]
[394034322,1763204056840,349.52,0.000111,2]
[394034323,1763204057226,349.52,0.000113,2]
[394034324,1763204057602,349.52,0.000114,2]
[394034325,1763204057929,349.52,0.000116,2]
[394034326,1763204058208,349.52,0.000117,2]
[394034327,1763204058554,349.52,0.000119,2]
[394034328,1763204058849,349.52,0.00012,2]
[394034329,1763204093631,302.57643837,0.000189,2]
[394034330,1763204093658,318.53260106,0.00019089,2]
[394034331,1763204101578,167.42,5e-05,2]
[394034332,1763204101887,167.42,6.2e-05,2]
[394034333,1763204102169,167.42,7.3e-05,2]
[394034334,1763204102470,167.42,8.5e-05,2]
[394034335,1763204102810,167.42,9.7e-05,2]
[394034336,1763204103041,167.42,0.000108,2]
[394034337,1763204131138,167.407172,0.00025649,120]
[394034338,1763204161740,167.41,5e-05,2]
[394034343,1763204560417,472.385717,0.00013699,2]
[394034344,1763204627382,5000.0,0.00019997,2]
[394034345,1763204635860,5000.0,0.00019997,2]
[394034346,1763204644901,0.01,0.00019997,2]
[394034347,1763204644924,4999.99,0.00019997,2]
[394034348,1763204653243,5000.0,0.00019997,2]
[394034349,1763204661290,3907.67329773,0.00020177,2]
[394034350,1763204669117,5000.0,0.00020177,2]
[394034351,1763204677130,5000.0,0.00020187,2]
[394034352,1763204692995,0.01,0.00020187,2]
[394034353,1763204693018,4999.99,0.00020187,2]
[394034354,1763204701725,576.25,5e-05,2]
[394034355,1763204702675,576.25,5.1e-05,2]
[394034356,1763204703060,576.25,5.3e-05,2]
[394034357,1763204703381,576.25,5.4e-05,2]
[394034358,1763204703652,576.25,5.6e-05,2]
[394034359,1763204703932,576.25,5.7e-05,2]
[394034360,1763204704324,576.25,5.9e-05,2]
[394034361,1763204704520,576.25,6e-05,2]
[394034362,1763204704809,390.02,6.1e-05,2]
[394034363,1763204704832,186.23,6.1e-05,2]
[394034364,1763204705087,576.25,6.3e-05,2]
[394034365,1763204705373,576.25,6.4e-05,2]
[394034366,1763204705651,576.25,6.6e-05,2]
[394034367,1763204705961,576.25,6.7e-05,2]
[394034368,1763204706209,576.25,6.9e-05,2]
[394034369,1763204706492,576.25,7e-05,2]
[394034370,1763204706765,576.25,7.1e-05,2]
[394034371,1763204707711,576.25,7.3e-05,2]
[394034372,1763204708052,576.25,7.4e-05,2]
[394034373,1763204708335,576.25,7.6e-05,2]
[394034374,1763204708629,576.25,7.7e-05,2]
[394034375,1763204708927,576.25,7.9e-05,2]
[394034376,1763204709217,576.25,8e-05,2]
[394034377,1763204709507,576.25,8.1e-05,2]
[394034378,1763204709853,576.25,8.3e-05,2]
[394034379,1763204710192,576.25,8.4e-05,2]
[394034380,1763204710554,576.25,8.6e-05,2]
[394034381,1763204710942,17.53,8.7e-05,2]
[394034382,1763204710964,558.72,8.7e-05,2]
[394034383,1763204711262,576.25,8.9e-05,2]
[394034384,1763204711542,576.25,9e-05,2]
[394034385,1763204711895,576.25,9.1e-05,2]
[394034386,1763204712322,576.25,9.3e-05,2]
[394034387,1763204712861,576.25,9.4e-05,2]